bitfinex/quotes_SOLUSD_20241209
["timestamp","ask_amount","ask_price","bid_price","bid_amount"]
[1733771667414,8.4790541,223.69,223.62,8.4790541]
[1733771667831,8.4790541,223.66,223.57,0.67057259]
[1733771668027,8.4790541,223.65,223.57,9.14962669]
[1733771668220,8.4790541,223.65,223.57,27.04678169]
[1733771668426,8.4790541,223.65,223.58,8.4790541]
[1733771668631,8.4790541,223.66,223.59,8.4790541]
[1733771669912,8.4790541,223.65,223.58,8.4790541]
[1733771670445,8.4790541,223.65,223.57,9.14962669]
[1733771670809,8.4790541,223.65,223.58,8.4790541]
[1733771671143,8.4790541,223.65,223.57,9.14962669]
[1733771672238,8.4790541,223.63,223.53,2.11449493]
[1733771672426,8.4790541,223.6,223.52,8.4790541]
[1733771672623,8.4790541,223.58,223.51,35.3190541]
[1733771672836,8.4790541,223.59,223.52,8.4790541]
[1733771674558,8.4790541,223.6,223.53,8.4790541]
[1733771675532,8.4790541,223.59,223.52,8.4790541]
[1733771676316,8.4790541,223.58,223.51,9.1499243]
[1733771676539,8.4790541,223.59,223.52,8.4790541]
[1733771678052,8.4790541,223.57,223.5,15.0952541]
[1733771678219,8.4790541,223.59,223.52,8.4790541]
[1733771678544,28.4790541,223.6,223.53,0.67081526]
[1733771679347,8.4790541,223.61,223.54,8.4790541]
[1733771681160,8.4790541,223.6,223.54,23.776884]
[1733771681922,8.4790541,223.58,223.52,23.776884]
[1733771682434,8.4790541,223.58,223.51,9.14987641]
[1733771682435,8.4790541,223.57,223.51,0.67082231]
[1733771682814,8.4790541,223.57,223.51,23.776884]
[1733771683734,8.4790541,223.54,223.49,2.14484435]
[1733771684242,0.12549,223.62,223.49,2.14484435]
[1733771684243,8.4790541,223.55,223.49,2.14484435]
[1733771685526,8.4790541,223.55,223.49,0.64484435]
[1733771688554,8.4790541,223.56,223.49,9.12389845]
[1733771688757,8.4790541,223.58,223.5,32.2559381]
[1733771689127,8.4790541,223.56,223.5,23.776884]
[1733771689633,8.4790541,223.57,223.5,32.2559381]
[1733771690724,10.0340541,223.59,223.51,9.14997668]
[1733771690923,8.4790541,223.6,223.53,8.4790541]
[1733771691729,8.4790541,223.6,223.52,32.2559381]
[1733771691948,8.4790541,223.59,223.52,32.2559381]
[1733771695374,8.4790541,223.58,223.5,35.3190541]
[1733771695551,8.4790541,223.57,223.5,35.3190541]
[1733771696461,8.4790541,223.58,223.5,35.3190541]
[1733771696775,8.4790541,223.58,223.51,8.4790541]
[1733771699371,8.4790541,223.57,223.5,32.2559381]
[1733771699575,8.4790541,223.58,223.51,8.4790541]
[1733771699761,8.4790541,223.59,223.51,8.4790541]
[1733771699962,8.4790541,223.57,223.5,32.2559381]
[1733771700490,8.4790541,223.58,223.51,8.4790541]
[1733771702298,8.4790541,223.57,223.5,32.92687499]
[1733771704206,8.4790541,223.58,223.51,8.4790541]
[1733771705001,8.4790541,223.56,223.49,0.64484435]
[1733771705168,8.4790541,223.57,223.5,8.4790541]
[1733771705875,8.4790541,223.58,223.5,8.4790541]
[1733771707484,8.4790541,223.58,223.51,8.4790541]
[1733771709873,8.4790541,223.57,223.5,8.4790541]
[1733771710272,8.4790541,223.54,223.49,0.64484435]
[1733771711289,6.6246,223.61,223.49,0.64484435]
[1733771711290,8.4790541,223.55,223.49,0.64484435]
[1733771711496,0.12549,223.6,223.49,9.12389845]
[1733771711701,28.4790541,223.58,223.51,8.4790541]
[1733771711894,20.0,223.58,223.52,8.4790541]
[1733771712267,20.0,223.56,223.52,8.4790541]
[1733771713079,0.12549,223.63,223.53,8.4790541]
[1733771713378,8.4790541,223.6,223.53,8.4790541]
[1733771714204,8.4790541,223.59,223.52,8.4790541]
[1733771714403,8.4790541,223.6,223.53,8.4790541]
[1733771715800,8.4790541,223.61,223.54,8.4790541]
[1733771716118,28.4790541,223.63,223.56,8.4790541]
[1733771716303,8.4790541,223.62,223.54,8.4790541]
[1733771716709,28.4790541,223.63,223.56,8.4790541]
[1733771716909,20.0,223.63,223.57,8.4790541]
[1733771717601,20.0,223.63,223.58,8.4790541]
[1733771717602,20.0,223.62,223.58,8.4790541]
[1733771718222,20.0,223.62,223.57,8.4790541]
[1733771718629,8.4790541,223.62,223.53,27.51077714]
[1733771718802,8.4790541,223.62,223.55,8.4790541]
[1733771719005,8.4790541,223.63,223.56,8.4790541]
[1733771720907,10.1235541,223.64,223.57,8.4790541]
[1733771721134,1.6582,223.69,223.61,8.4790541]
[1733771721336,8.4790541,223.68,223.61,8.4790541]
[1733771721935,1.6582,223.69,223.61,8.4790541]
[1733771721936,10.1372541,223.69,223.61,8.4790541]
[1733771722111,1.6582,223.69,223.64,8.4790541]
[1733771722315,1.5006,223.74,223.64,8.4790541]
[1733771722511,8.4790541,223.72,223.65,8.4790541]
[1733771722753,1.5006,223.74,223.67,8.4790541]
[1733771722945,9.9796541,223.74,223.67,8.4790541]
[1733771723455,1.5006,223.74,223.68,8.4790541]
[1733771724038,20.0,223.72,223.68,8.4790541]
[1733771724735,9.9796541,223.74,223.67,8.4790541]
[1733771724932,1.5006,223.74,223.67,8.4790541]
[1733771725136,6.1158,223.8,223.62,26.84]
[1733771725137,8.4790541,223.78,223.71,8.4790541]
[1733771725367,1.5628,223.79,223.73,8.4790541]
[1733771725560,8.4790541,223.81,223.74,8.4790541]
[1733771726338,8.4790541,223.81,223.72,0.67030669]
[1733771726339,8.4790541,223.82,223.75,8.4790541]
[1733771726837,8.4790541,223.81,223.74,8.4790541]
[1733771727256,8.4790541,223.82,223.75,8.4790541]
[1733771727458,20.0,223.83,223.76,8.4790541]
[1733771727673,1.5628,223.85,223.79,8.4790541]
[1733771728748,8.4790541,223.84,223.77,8.4790541]
[1733771728941,8.4790541,223.82,223.71,27.5101024]
[1733771729164,8.4790541,223.82,223.75,8.4790541]
[1733771729471,8.4790541,223.8,223.71,0.6701024]
[1733771729680,8.4790541,223.78,223.71,8.4790541]
[1733771730179,8.4790541,223.79,223.72,8.4790541]
[1733771730402,8.4790541,223.8,223.73,8.4790541]
[1733771731281,8.4790541,223.8,223.72,8.4790541]
[1733771731498,8.4790541,223.79,223.72,8.4790541]
[1733771732871,8.4790541,223.78,223.71,8.4790541]
[1733771733485,8.4790541,223.76,223.66,0.67027715]
[1733771733667,8.4790541,223.74,223.67,8.4790541]
[1733771733871,8.4790541,223.74,223.66,0.67027715]
[1733771733872,8.4790541,223.75,223.68,8.4790541]
[1733771739621,7.9790541,223.75,223.68,8.4790541]
[1733771740725,8.4790541,223.74,223.66,0.67027715]
[1733771741028,8.4790541,223.7,223.6,7.5101]
[1733771741203,8.4790541,223.69,223.62,26.3718671]
[1733771741402,8.4790541,223.69,223.62,8.4790541]
[1733771741601,8.4790541,223.7,223.62,8.4790541]
[1733771741803,8.4790541,223.7,223.63,8.4790541]
[1733771742128,1.5737,223.74,223.67,8.4790541]
[1733771742324,1.5737,223.74,223.68,8.4790541]
[1733771742496,1.5955,223.79,223.7,8.4790541]
[1733771742695,1.5955,223.79,223.72,8.4790541]
[1733771742907,1.5955,223.79,223.63,60.7562164]
[1733771742908,1.5955,223.79,223.73,8.4790541]
[1733771743901,1.5955,223.79,223.72,8.4790541]
[1733771744447,1.5955,223.79,223.65,0.67030709]
[1733771744448,1.5955,223.79,223.73,8.4790541]
[1733771744730,1.5955,223.79,223.72,8.4790541]
[1733771745237,1.5955,223.79,223.72,13.20036011]
[1733771745654,6.3076,223.84,223.76,13.20036011]
[1733771745946,13.20036011,223.82,223.75,13.20036011]
[1733771748148,13.20036011,223.83,223.76,13.20036011]
[1733771749040,13.20036011,223.84,223.77,13.20036011]
[1733771750315,14.83836011,223.85,223.78,13.20036011]
[1733771750516,1.638,223.85,223.79,13.20036011]
[1733771750715,1.638,223.85,223.8,13.20036011]
[1733771752043,1.638,223.85,223.79,13.20036011]
[1733771753434,1.638,223.85,223.8,13.20036011]
[1733771754237,13.20036011,223.87,223.8,13.20036011]
[1733771754761,1.5575,223.91,223.83,13.20036011]
[1733771754762,14.75786011,223.91,223.83,13.20036011]
[1733771754939,14.75786011,223.91,223.84,13.20036011]
[1733771755145,1.5575,223.91,223.85,13.20036011]
[1733771755525,1.5575,223.91,223.86,13.20036011]
[1733771755822,1.5575,223.91,223.87,13.20036011]
[1733771756360,6.9462776,223.95,223.89,13.20036011]
[1733771756650,0.5289776,223.95,223.9,13.20036011]
[1733771757165,0.5289776,223.95,223.92,13.20036011]
[1733771757320,0.5289776,223.95,223.93,13.20036011]
[1733771757517,0.5289776,223.95,223.92,13.20036011]
[1733771758249,0.5289776,223.95,223.87,0.66974964]
[1733771758250,0.5289776,223.95,223.93,13.20036011]
[1733771758942,0.5289776,223.95,223.92,13.20036011]
[1733771759159,0.5289776,223.95,223.91,13.20036011]
[1733771759453,0.5289776,223.95,223.9,13.20036011]
[1733771759758,13.20036011,223.93,223.86,13.20036011]
[1733771760055,13.20036011,223.92,223.85,13.20036011]
[1733771760664,13.20036011,223.91,223.85,13.20036011]
[1733771760865,13.20036011,223.89,223.82,13.20036011]
[1733771761071,13.20036011,223.88,223.81,13.20036011]
[1733771761249,13.20036011,223.87,223.8,13.20036011]
[1733771761570,13.20036011,223.84,223.77,13.20036011]
[1733771762273,1.5147,223.87,223.82,13.20036011]
[1733771762567,20.0,223.84,223.78,0.67013355]
[1733771762773,33.20036011,223.84,223.77,13.20036011]
[1733771763275,13.20036011,223.83,223.76,13.20036011]
[1733771763775,33.20036011,223.84,223.76,13.20036011]
[1733771764095,20.0,223.84,223.78,13.20036011]
[1733771764467,13.20036011,223.86,223.78,13.20036011]
[1733771765164,13.20036011,223.85,223.78,13.20036011]
[1733771765365,13.20036011,223.84,223.77,13.20036011]
[1733771765554,13.20036011,223.85,223.78,13.20036011]
[1733771765954,13.20036011,223.86,223.78,13.20036011]
[1733771766793,13.20036011,223.85,223.78,13.20036011]
[1733771767881,13.20036011,223.84,223.77,13.20036011]
[1733771769371,13.20036011,223.82,223.74,13.20036011]
[1733771769674,21.5147,223.87,223.72,13.20036011]
[1733771769675,13.20036011,223.79,223.72,13.20036011]
[1733771770293,13.20036011,223.85,223.7,13.20036011]
[1733771770294,13.20036011,223.77,223.7,13.20036011]
[1733771770791,13.20036011,223.76,223.69,13.20036011]
[1733771770991,1.62579,223.79,223.66,0.67028188]
[1733771770992,13.20036011,223.73,223.66,13.20036011]
[1733771771192,13.20036011,223.72,223.65,13.20036011]
[1733771771663,13.20036011,223.74,223.66,13.20036011]
[1733771771866,13.20036011,223.74,223.67,13.20036011]
[1733771772280,23.902374,223.78,223.67,13.20036011]
[1733771772281,13.20036011,223.75,223.67,13.20036011]
[1733771772472,23.902374,223.78,223.63,13.20036]
[1733771772473,13.20036011,223.78,223.71,13.20036011]
[1733771772676,20.0,223.76,223.69,13.20036011]
[1733771772863,13.20036011,223.74,223.66,13.20036011]
[1733771773470,13.20036011,223.74,223.67,13.20036011]
[1733771773775,13.20036011,223.75,223.68,13.20036011]
[1733771773979,33.20036011,223.76,223.69,13.20036011]
[1733771774186,33.20036011,223.76,223.7,13.20036011]
[1733771774187,20.0,223.76,223.7,13.20036011]
[1733771774391,33.20036011,223.76,223.69,13.20036011]
[1733771775269,13.20036011,223.77,223.7,13.20036011]
[1733771775582,13.20036011,223.78,223.71,13.20036011]
[1733771775900,13.20036011,223.78,223.7,13.20036011]
[1733771776076,13.20036011,223.76,223.69,13.20036011]
[1733771776277,13.20036011,223.75,223.68,13.20036011]
[1733771777796,13.20036011,223.75,223.67,13.20036011]
[1733771778002,13.20036011,223.73,223.66,13.20036011]
[1733771778297,13.20036011,223.72,223.65,13.20036011]
[1733771778498,13.20036011,223.71,223.64,13.20036011]
[1733771779000,13.20036011,223.69,223.62,13.20036011]
[1733771779829,13.20036011,223.7,223.63,13.20036011]
[1733771780520,13.20036011,223.71,223.64,13.20036011]
[1733771781118,13.20036011,223.7,223.63,13.20036011]
[1733771782409,13.20036011,223.71,223.64,13.20036011]
[1733771782700,13.20036011,223.73,223.66,13.20036011]
[1733771783302,13.20036011,223.74,223.67,13.20036011]
[1733771783619,1.5003,223.79,223.71,13.20036011]
[1733771783922,13.20036011,223.77,223.7,13.20036011]
[1733771784096,13.20036011,223.76,223.69,13.20036011]
[1733771784622,13.20036011,223.77,223.7,13.20036011]
[1733771784805,0.12549,223.78,223.69,13.20036011]
[1733771784806,13.20036011,223.76,223.69,13.20036011]
[1733771785005,13.20036011,223.75,223.67,13.20036011]
[1733771785343,13.20036011,223.74,223.67,13.20036011]
[1733771785695,13.20036011,223.75,223.68,13.20036011]
[1733771786015,0.25098,223.78,223.7,13.20036011]
[1733771786016,13.20036011,223.78,223.7,13.20036011]
[1733771786215,14.70066011,223.79,223.72,13.20036011]
[1733771786396,1.5003,223.79,223.72,13.20036011]
[1733771786800,1.5003,223.79,223.74,13.20036011]
[1733771787031,1.5003,223.79,223.73,13.20036011]
[1733771787619,1.5003,223.79,223.74,13.20036011]
[1733771788236,1.5003,223.79,223.75,13.20036011]
[1733771789604,1.5003,223.79,223.76,26.84]
[1733771789907,14.74016011,223.84,223.77,13.20036011]
[1733771790107,1.5398,223.84,223.78,13.20036011]
[1733771790307,1.5398,223.84,223.79,13.20036011]
[1733771790701,1.5398,223.84,223.8,13.20036011]
[1733771792539,7.9233,223.9,223.81,13.20036011]
[1733771792701,7.9233,223.9,223.84,13.20036011]
[1733771792905,1.5274,223.9,223.85,13.20036011]
[1733771793116,1.5274,223.9,223.84,13.20036011]
[1733771793643,1.5274,223.9,223.85,13.20036011]
[1733771793811,1.5274,223.9,223.86,13.20036011]
[1733771794012,0.5289776,223.95,223.88,13.20036011]
[1733771794230,0.5289776,223.95,223.91,13.20036011]
[1733771795119,0.5289776,223.95,223.9,13.20036011]
[1733771795516,13.20036011,223.94,223.87,13.20036011]
[1733771796217,0.5289776,223.95,223.89,13.20036011]
[1733771798656,0.5289776,223.95,223.92,13.20036011]
[1733771799152,0.5289776,223.95,223.9,13.20036011]
[1733771799557,0.5289776,223.95,223.91,13.20036011]
[1733771799851,0.5289776,223.95,223.93,13.20036011]
[1733771800249,13.20036011,224.0,223.93,13.20036011]
[1733771801542,13.20036011,224.0,223.88,0.66964637]
[1733771801543,8.018,224.01,223.95,13.20036011]
[1733771801755,1.5373,224.01,223.95,13.20036011]
[1733771801954,1.5373,224.01,223.96,13.20036011]
[1733771802262,1.5373,224.01,223.97,13.20036011]
[1733771802827,1.5373,224.01,223.96,13.20036011]
[1733771803059,13.20036011,224.0,223.93,13.20036011]
[1733771803264,13.20036011,224.0,223.92,13.20036011]
[1733771803565,13.20036011,223.99,223.92,13.20036011]
[1733771805040,1.5373,224.01,223.93,13.20036011]
[1733771805246,1.5373,224.01,223.95,13.20036011]
[1733771805457,1.5373,224.01,223.88,7.52064043]
[1733771805458,1.5373,224.01,223.92,13.20036011]
[1733771805661,13.20036011,223.99,223.92,13.20036011]
[1733771805865,13.20036011,224.0,223.89,24.44658747]
[1733771806169,1.5373,224.01,223.89,24.44658747]
[1733771806330,1.5373,224.01,223.97,13.20036011]
[1733771806831,1.5373,224.01,223.96,13.20036011]
[1733771807250,1.5373,224.01,223.91,0.66957568]
[1733771807251,1.5373,224.01,223.97,13.20036011]
[1733771807555,1.5373,224.01,223.96,13.20036011]
[1733771807758,1.5373,224.01,223.95,13.20036011]
[1733771810051,13.20036011,223.99,223.92,13.20036011]
[1733771810255,13.20036011,223.98,223.9,13.20036011]
[1733771810756,13.20036011,223.95,223.88,13.20036011]
[1733771810967,13.20036011,223.93,223.84,6.85108601]
[1733771811134,13.20036011,223.95,223.87,13.20036011]
[1733771811467,13.20036011,223.97,223.9,13.20036011]
[1733771812048,13.20036011,223.98,223.9,13.20036011]
[1733771812888,1.5373,224.01,223.87,36.97724411]
[1733771813043,13.20036011,223.93,223.83,23.776884]
[1733771813245,13.20036011,223.93,223.85,13.20036011]
[1733771813841,13.20036011,223.93,223.86,13.20036011]
[1733771814444,6.2335,223.96,223.9,13.20036011]
[1733771814656,19.43386011,223.96,223.89,13.20036011]
[1733771815331,19.43386011,223.96,223.88,13.20036011]
[1733771816370,19.43386011,223.96,223.9,13.20036011]
[1733771816371,6.2335,223.96,223.9,13.20036011]
[1733771816555,19.43386011,223.96,223.89,13.20036011]
[1733771817141,19.43386011,223.96,223.88,13.20036011]
[1733771817860,13.20036011,223.93,223.86,13.20036011]
[1733771818053,13.20036011,223.93,223.85,13.20036011]
[1733771818571,13.20036011,223.92,223.84,13.20036011]
[1733771819681,13.20036011,223.87,223.79,13.20036011]
[1733771819849,13.20036011,223.86,223.79,13.20036011]
[1733771820262,13.20036011,223.85,223.78,13.20036011]
[1733771820469,13.20036011,223.84,223.77,13.62372671]
[1733771820774,13.20036011,223.85,223.78,13.20036011]
[1733771820955,13.20036011,223.85,223.77,13.62372671]
[1733771821141,13.20036011,223.84,223.77,0.4233666]
[1733771822175,13.20036011,223.83,223.77,0.4233666]
[1733771822362,13.20036011,223.82,223.77,0.4233666]
[1733771822962,13.20036011,223.83,223.77,0.4233666]
[1733771823277,6.652,223.86,223.77,0.4233666]
[1733771823278,13.20036011,223.84,223.77,13.62372671]
[1733771823462,13.20036011,223.84,223.77,0.4233666]
[1733771823654,13.20036011,223.83,223.77,0.4233666]
[1733771826280,13.20036011,223.81,223.77,0.4233666]
[1733771826579,13.20036011,223.79,223.77,0.4233666]
[1733771826888,14.78386011,223.8,223.77,0.4233666]
[1733771827381,1.6076,223.87,223.77,0.4233666]
[1733771827554,6.1222,223.92,223.83,13.20036011]
[1733771827753,1.6076,223.93,223.85,13.20036011]
[1733771827754,14.80796011,223.93,223.85,13.20036011]
[1733771827981,1.6076,223.93,223.86,0.66986359]
[1733771828600,1.6076,223.93,223.87,13.20036011]
[1733771828874,13.20036011,223.9,223.81,13.20036011]
[1733771829383,13.20036011,223.88,223.81,13.20036011]
[1733771830367,13.20036011,223.9,223.81,13.87031622]
[1733771831486,13.20036011,223.92,223.83,13.20036011]
[1733771831693,1.6076,223.93,223.87,13.20036011]
[1733771831996,13.20036011,223.92,223.85,13.20036011]
[1733771832161,13.20036011,223.92,223.84,0.66989174]
[1733771832492,21.6076,223.93,223.87,13.20036011]
[1733771832676,1.6076,223.93,223.87,13.20036011]
[1733771832992,1.6076,223.93,223.88,0.66979459]
[1733771833290,13.20036011,223.95,223.88,0.66979459]
[1733771833461,13.20036011,223.95,223.89,13.20036011]
[1733771833861,13.20036011,223.95,223.87,13.20036011]
[1733771834070,13.20036011,223.91,223.83,13.20036011]
[1733771834280,13.20036011,223.92,223.85,13.20036011]
[1733771834473,13.20036011,223.94,223.87,13.20036011]
[1733771834971,13.20036011,223.95,223.88,13.20036011]
[1733771835491,13.20036011,223.94,223.86,13.87023625]
[1733771836390,13.20036011,223.93,223.86,13.87023625]
[1733771836773,13.20036011,223.94,223.86,13.87023625]
[1733771836978,13.20036011,223.95,223.87,13.20036011]
[1733771837694,13.20036011,223.96,223.89,13.20036011]
[1733771837896,13.20036011,223.97,223.89,13.20036011]
[1733771838067,13.20036011,223.97,223.9,0.66972858]
[1733771838583,14.80796011,223.98,223.91,13.20036011]
[1733771839113,1.6076,223.98,223.92,13.87006038]
[1733771840483,1.6076,223.98,223.92,0.66970027]
[1733771840882,1.6076,223.98,223.92,13.87006038]
[1733771843606,13.20036011,223.99,223.92,13.87006038]
[1733771843993,13.20036011,223.99,223.92,0.66970027]
[1733771844180,13.20036011,223.96,223.89,26.40072011]
[1733771844507,13.20036011,223.96,223.89,13.20036011]
[1733771844715,13.20036011,223.96,223.9,26.84]
[1733771844894,13.20036011,223.92,223.86,26.84]
[1733771845095,13.20036011,223.9,223.83,13.20036011]
[1733771845424,13.20036011,223.95,223.87,13.20036011]
[1733771845591,13.20036011,223.95,223.84,0.66988138]
[1733771845592,13.20036011,223.95,223.88,13.20036011]
[1733771846111,13.20036011,223.95,223.85,26.84]
[1733771846112,13.20036011,223.95,223.87,13.20036011]
[1733771846698,13.20036011,223.95,223.87,40.04036011]
[1733771847027,13.20036011,223.97,223.9,13.20036011]
[1733771847532,13.20036011,223.96,223.89,13.20036011]
[1733771847839,13.20036011,223.96,223.9,0.66972528]
[1733771848010,1.5988,224.03,223.95,13.20036011]
[1733771848211,1.5988,224.03,223.96,13.86990608]
[1733771848416,14.79916011,224.03,223.96,13.86990608]
[1733771848722,14.79916011,224.03,223.96,0.66954597]
[1733771849931,14.79916011,224.03,223.95,0.66954153]
[1733771851436,1.5988,224.03,223.96,13.20036011]
[1733771851726,1.5988,224.03,223.97,0.66951812]
[1733771851901,14.79916011,224.03,223.97,0.66951812]
[1733771854216,6.4455,224.09,223.97,0.66951812]
[1733771854217,13.20036011,224.05,223.97,0.66951812]
[1733771854548,13.20036011,224.05,223.98,13.20036011]
[1733771856843,14.80216011,224.09,224.02,13.20036011]
[1733771858721,14.80216011,224.09,224.03,0.66933979]
[1733771859049,1.5503,224.14,224.05,13.20036011]
[1733771859212,13.20036011,224.13,224.05,13.86962451]
[1733771859415,13.20036011,224.13,224.06,13.20036011]
[1733771859614,13.20036011,224.13,224.07,0.66920997]
[1733771859847,1.5503,224.14,224.07,13.86957008]
[1733771860020,13.20036011,224.16,224.09,13.20036011]
[1733771860363,13.72933771,224.17,224.1,13.86949525]
[1733771860841,0.5289776,224.17,224.11,13.20036011]
[1733771861011,13.72933771,224.17,224.1,0.66913514]
[1733771861449,13.72933771,224.17,224.1,13.86949525]
[1733771862152,0.5289776,224.17,224.11,13.20036011]
[1733771863823,0.5289776,224.17,224.12,0.66908709]
[1733771865321,0.5289776,224.17,224.13,13.20036011]
[1733771865515,0.5289776,224.17,224.14,13.86939985]
[1733771865845,0.5289776,224.17,224.13,13.20036011]
[1733771866015,0.5289776,224.17,224.15,0.66899478]
[1733771866221,0.5289776,224.17,224.1,13.20036011]
[1733771866443,0.5289776,224.17,224.12,0.12549]
[1733771866616,0.5289776,224.17,224.13,0.66899054]
[1733771866817,0.5289776,224.17,224.14,13.20036011]
[1733771867241,0.5289776,224.17,224.15,37.77172801]
[1733771867818,0.5289776,224.17,224.16,13.32585011]
[1733771869259,5.0,224.36,224.24,13.20036011]
[1733771869260,1.5913,224.3,224.24,13.20036011]
[1733771869760,1.5913,224.3,224.25,0.66871648]
[1733771870260,13.20036011,224.32,224.25,0.66871648]
[1733771870561,13.20036011,224.3,224.25,0.66871648]
[1733771870729,13.20036011,224.31,224.25,0.66871648]
[1733771870931,13.20036011,224.32,224.25,0.66871648]
[1733771871130,13.20036011,224.32,224.25,13.86907659]
[1733771871358,20.0,224.33,224.26,13.20036011]
[1733771871543,20.0,224.33,224.27,0.66860673]
[1733771871931,13.20036011,224.35,224.27,13.86896684]
[1733771872444,13.20036011,224.36,224.28,13.20036011]
[1733771872635,13.20036011,224.35,224.27,13.86896319]
[1733771873236,13.20036011,224.34,224.27,13.86896319]
[1733771873434,13.20036011,224.35,224.27,13.86896319]
[1733771873642,13.20036011,224.36,224.28,13.20036011]
[1733771873955,13.20036011,224.39,224.31,13.20036011]
[1733771874157,13.20036011,224.38,224.31,13.86881149]
[1733771874345,13.20036011,224.39,224.31,13.86881149]
[1733771874764,13.20036011,224.39,224.32,13.20036011]
[1733771874942,2.1616776,224.4,224.33,13.86878372]
[1733771875143,15.36203771,224.4,224.33,13.86878372]
[1733771875464,0.5289776,224.4,224.33,13.86878372]
[1733771875664,0.5289776,224.4,224.34,13.20036011]
[1733771875865,0.5289776,224.4,224.35,13.86870488]
[1733771876161,0.5289776,224.4,224.36,0.12549]
[1733771876361,0.5289776,224.4,224.37,0.66829152]
[1733771876555,0.5289776,224.4,224.36,0.12549]
[1733771876939,13.20036011,224.37,224.22,6.82584682]
[1733771877242,13.72933771,224.4,224.24,0.66850523]
[1733771877243,13.20036011,224.3,224.24,0.66850523]
[1733771877968,13.20036011,224.26,224.2,0.66868154]
[1733771878133,13.20036011,224.26,224.19,0.66882012]
[1733771878458,13.20036011,224.25,224.19,0.66882012]
[1733771878633,13.20036011,224.24,224.19,0.66882012]
[1733771879831,13.20036011,224.24,224.17,13.20036011]
[1733771880068,13.20036011,224.2,224.12,0.6688792]
[1733771880250,13.20036011,224.18,224.12,13.86923931]
[1733771881046,13.20036011,224.23,224.15,13.20036011]
[1733771881232,1.6521,224.24,224.12,0.66891724]
[1733771881233,21.04204884,224.18,224.12,0.66891724]
[1733771881436,21.04204884,224.18,224.09,27.25604884]
[1733771881739,21.04204884,224.18,224.1,0.66911283]
[1733771882374,1.6521,224.24,224.1,0.66911283]
[1733771882375,21.04204884,224.17,224.1,21.71116167]
[1733771882545,1.6521,224.24,224.07,1.4443]
[1733771882546,21.04204884,224.15,224.07,21.71114633]
[1733771882739,21.04204884,224.14,224.07,0.66909749]
[1733771883259,21.04204884,224.15,224.07,21.71114633]
[1733771883437,21.04204884,224.13,224.07,0.66909749]
[1733771883644,21.04204884,224.12,224.05,21.04204884]
[1733771883963,21.04204884,224.13,224.05,21.04204884]
[1733771884267,21.04204884,224.14,224.06,21.04204884]
[1733771884469,21.04204884,224.13,224.05,21.16753884]
[1733771884676,21.04204884,224.1,224.02,21.04204884]
[1733771885266,21.04204884,224.09,224.02,21.04204884]
[1733771885579,21.04204884,224.11,224.03,21.71137383]
[1733771886066,21.04204884,224.09,224.03,0.66932499]
[1733771886272,21.04204884,224.09,224.02,21.04204884]
[1733771886644,21.04204884,224.1,224.02,21.04204884]
[1733771886965,21.04204884,224.12,224.04,21.04204884]
[1733771887166,21.04204884,224.11,224.04,21.04204884]
[1733771887545,21.04204884,224.12,224.04,21.04204884]
[1733771887869,21.04204884,224.12,224.06,21.04204884]
[1733771888465,21.04204884,224.12,223.98,6.0565]
[1733771888466,21.04204884,224.17,224.09,21.04204884]
[1733771888668,21.04204884,224.15,224.09,21.04204884]
[1733771889275,21.04204884,224.15,224.07,21.71130278]
[1733771889448,21.04204884,224.15,224.08,0.12549]
[1733771889646,21.04204884,224.15,224.09,0.66913228]
[1733771890344,21.04204884,224.15,224.07,21.04204884]
[1733771890548,21.04204884,224.13,224.05,21.04204884]
[1733771890749,0.12549,224.23,224.05,21.04204884]
[1733771891054,21.04204884,224.18,224.11,21.04204884]
[1733771891247,21.04204884,224.18,224.09,21.04204884]
[1733771891567,21.04204884,224.16,224.1,0.6691348]
[1733771893778,21.04204884,224.15,224.1,0.6691348]
[1733771893957,21.04204884,224.15,224.08,21.71119414]
[1733771894159,21.04204884,224.15,224.08,0.6691453]
[1733771894360,21.04204884,224.14,224.06,21.04204884]
[1733771894578,21.04204884,224.13,224.05,21.04204884]
[1733771894784,21.04204884,224.13,224.06,0.66924878]
[1733771895871,21.04204884,224.14,224.06,21.71129762]
[1733771896583,0.12549,224.22,224.07,21.04204884]
[1733771896584,21.04204884,224.15,224.07,21.04204884]
[1733771896760,21.04204884,224.16,224.08,21.71123905]
[1733771897575,1.6521,224.24,224.13,21.04204884]
[1733771897780,21.04204884,224.2,224.14,0.66902175]
[1733771898086,21.04204884,224.19,224.14,0.66902175]
[1733771898462,21.04204884,224.2,224.14,0.66902175]
[1733771898778,21.04204884,224.21,224.14,0.66902175]
[1733771898954,21.04204884,224.2,224.14,0.66902175]
[1733771899154,21.04204884,224.17,224.1,21.71110558]
[1733771899372,21.04204884,224.15,224.08,21.04204884]
[1733771899884,21.04204884,224.11,224.07,17.856666]
[1733771900079,21.04204884,224.1,224.04,6.1882]
[1733771900280,21.04204884,224.1,224.05,17.859448]
[1733771900600,21.04204884,224.09,224.05,17.859448]
[1733771900779,21.04204884,224.09,224.02,21.71122842]